{"text_format":"1","workbook":"xlsx","n_sheets":5,"sheets":["Basuppgifter Sammanfattning","Allmänna kontrol - ARK","Uppdragskontr - ARK (1)","Uppdragskontr - ARK (2)","Uppdragskontr - ARK (3)"],"not_rendered":{"charts":0,"images":2,"macros":1,"external_links":0,"defined_names":5,"comments":0,"pivot_tables":0},"unopened":[],"bounds":{"document_bytes":16777216,"sheet_cells":100000,"rows_first":2000,"rows_last":500,"rows_between":2000,"halvings":0,"cell_chars":16384,"cell_head_chars":4096},"cells_cut":0,"cells_raw":0,"read":"whole","date_system":"1900"}

{"sheet":"Basuppgifter Sammanfattning","index":0,"n_rows":125,"n_cols":15,"rows_kept":125,"cut":false,"hidden":false,"merged":[[59,0,59,4],[60,0,60,4],[27,0,27,4],[32,0,32,4],[46,0,46,4],[47,0,47,4],[48,0,48,4],[49,0,49,4],[50,0,50,4],[51,0,51,4],[52,0,52,4],[53,0,53,4],[54,0,54,4],[55,0,55,4],[56,0,56,4],[57,0,57,4],[58,0,58,4],[43,0,43,4],[44,0,44,4],[28,0,28,4],[29,0,29,4],[30,0,30,4],[31,0,31,4],[33,0,33,4],[101,0,106,8],[92,5,92,12],[94,5,94,12],[96,0,96,8],[100,0,100,2],[100,3,100,7],[97,0,98,8],[91,5,91,12],[80,5,80,12],[81,5,81,12],[82,5,82,12],[83,5,83,12],[84,5,84,12],[85,5,85,12],[86,5,86,12],[87,5,87,12],[88,5,88,12],[89,5,89,12],[90,5,90,12],[77,5,77,12],[65,5,65,12],[66,5,66,12],[67,5,67,12],[68,5,68,12],[69,5,69,12],[70,5,70,12],[71,5,71,12],[72,5,72,12],[73,5,73,12],[74,5,74,12],[75,5,75,12],[64,5,64,12],[50,5,50,12],[51,5,51,12],[52,5,52,12],[53,5,53,12],[54,5,54,12],[55,5,55,12],[56,5,56,12],[57,5,57,12],[58,5,58,12],[60,5,60,12],[63,5,63,12],[49,5,49,12],[38,5,38,12],[39,5,39,12],[40,5,40,12],[41,5,41,12],[43,5,43,12],[46,5,46,12],[47,5,47,12],[48,5,48,12],[39,0,39,4],[40,0,40,4],[41,0,41,4],[42,0,42,4],[36,0,36,4],[37,0,37,4],[38,0,38,4],[19,5,19,8],[20,5,20,8],[21,5,21,8],[23,14,23,17],[27,5,27,12],[42,5,42,12],[31,5,31,12],[32,5,32,12],[33,5,33,12],[36,5,36,12],[37,5,37,12],[28,5,28,12],[29,5,29,12],[30,5,30,12],[18,5,18,8],[12,0,12,3],[14,0,14,3],[6,10,6,15],[7,10,7,15],[12,6,12,7],[14,6,14,7],[17,5,17,8],[8,0,8,3],[10,0,10,3],[10,6,10,7],[10,10,10,15]]}
[]
[]
[]
[]
["Basuppgifter - allmänna kontroller ARK inkl. uppdragskontroller"]
[]
[]
["Besöksdatum:",null,null,null,null,"Urvalsår:",2015]
[]
["Byrå:",null,null,null,null,null,"Diarienr FAR:"]
[]
["Auktoriserad redovisningskonsult:",null,null,null,"Byråledare ja/nej:",null,"SRF Byrånr:"]
[]
["Kvalitetskontrollant:",null,null,null,null,null,"SRF Medl nr:"]
[]
[]
[null,null,null,null,null,"Antal ARK SRF, byrå:"]
[null,null,null,null,"Medl nr:"]
[null,null,null,null,"Medl nr:"]
[null,null,null,null,"Medl nr:"]
[null,null,null,null,"Medl nr:"]
[null,null,null,null,"Medl nr:"]
[null,null,null,null,null,"Antal ARK FAR, byrå:"]
[null,null,null,null,null,null,null,null,null,null,null,null,null,null,"Speciellt för FAR:"]
[null,null,null,null,null,null,null,null,null,null,null,null,null,null,"Slutsatser"]
["Sammanfattning av utförd kvalitetskontroll",null,null,null,null,null,null,null,null,null,null,null,null,null,"Uppgifter inför besök:"]
["Iakttagelser - uppgifter inför besök enskild del:",null,null,null,null,"OBS! Skriv ej här.Text länkas från checklistan automatiskt "]
["Beskrivning:",null,null,null,null,"Väsentliga iakttagelser:",null,null,null,null,null,null,null,null,"Uppfyller Reko"]
[]
[null,null,null,null,null,null,null,null,null,null,null,null,null,null,"Uppfyller i huvudsak Reko, "]
[null,null,null,null,null,null,null,null,null,null,null,null,null,null,"men bör förbättras avseende "]
[null,null,null,null,null,null,null,null,null,null,null,null,null,null,"angivna iakttagelser"]
["Övriga kommentarer:"]
[null,null,null,null,null,null,null,null,null,null,null,null,null,null,"Uppfyller ej Reko p.g.a. "]
[null,null,null,null,null,null,null,null,null,null,null,null,null,null,"angivna iakttagelser"]
["Iakttagelser - allmänna kontroller - ARKs efterlevnad av byråns rutiner:"]
["Beskrivning.",null,null,null,null,"Väsentliga iakttagelser:",null,null,null,null,null,null,null,null,"Allmänna kontroller - ARK:"]
["Uppdragsavtal",null,null,null,null,{"$f":"'Allmänna kontrol - ARK'!B21","v":0}]
["Arbetets planering och utförande",null,null,null,null,{"$f":"'Allmänna kontrol - ARK'!B28","v":0},null,null,null,null,null,null,null,null,"Uppfyller Reko"]
["ARKs arbetssituation",null,null,null,null,{"$f":"'Allmänna kontrol - ARK'!B35","v":0}]
["Delegering",null,null,null,null,{"$f":"'Allmänna kontrol - ARK'!B41","v":0},null,null,null,null,null,null,null,null,"Uppfyller i huvudsak Reko, "]
["Dokumentation och arkivering",null,null,null,null,{"$f":"'Allmänna kontrol - ARK'!B48","v":0},null,null,null,null,null,null,null,null,"men bör förbättras avseende "]
["Särskilda bransch - och andra frågeställningar",null,null,null,null,{"$f":"'Allmänna kontrol - ARK'!B57","v":0},null,null,null,null,null,null,null,null,"angivna iakttagelser"]
["Övriga kommentarer:"]
[null,null,null,null,null,null,null,null,null,null,null,null,null,null,"Uppfyller ej Reko p.g.a. "]
["Iakttagelser uppdragskontroll 1. (ARK):",null,null,null,null,null,null,null,null,null,null,null,null,null,"angivna iakttagelser"]
["Beskrivning:",null,null,null,null,"Väsentliga iakttagelser:"]
["Allmänt",null,null,null,null,{"$f":"'Uppdragskontr - ARK (1)'!B67","v":"a1"},null,null,null,null,null,null,null,null,"Uppdragskontroll 1. (ARK)"]
["Bokföringsuppdrag",null,null,null,null,{"$f":"'Uppdragskontr - ARK (1)'!B84","v":0}]
["Betalningsuppdrag",null,null,null,null,{"$f":"'Uppdragskontr - ARK (1)'!B94","v":0},null,null,null,null,null,null,null,null,"Uppfyller Reko"]
["Bokslutsuppdrag",null,null,null,null,{"$f":"'Uppdragskontr - ARK (1)'!B105","v":0}]
["Årsredovisningsuppdrag",null,null,null,null,{"$f":"'Uppdragskontr - ARK (1)'!B119","v":0},null,null,null,null,null,null,null,null,"Uppfyller i huvudsak Reko, "]
["Årsbokslutsuppdrag",null,null,null,null,{"$f":"'Uppdragskontr - ARK (1)'!B136","v":0},null,null,null,null,null,null,null,null,"men bör förbättras avseende "]
["Koncernredovisningsuppdrag",null,null,null,null,{"$f":"'Uppdragskontr - ARK (1)'!B146","v":0},null,null,null,null,null,null,null,null,"angivna iakttagelser"]
["Periodbokslut",null,null,null,null,{"$f":"'Uppdragskontr - ARK (1)'!B159","v":0}]
["Rådgivningsuppdrag",null,null,null,null,{"$f":"'Uppdragskontr - ARK (1)'!B172","v":0},null,null,null,null,null,null,null,null,"Uppfyller ej Reko p.g.a. "]
["Insourcinguppdrag",null,null,null,null,{"$f":"'Uppdragskontr - ARK (1)'!B182","v":0},null,null,null,null,null,null,null,null,"angivna iakttagelser"]
["Skattedeklarationer",null,null,null,null,{"$f":"'Uppdragskontr - ARK (1)'!B191","v":0}]
["Inkomstdeklaration",null,null,null,null,{"$f":"'Uppdragskontr - ARK (1)'!B202","v":0}]
["Löneserviceuppdrag",null,null,null,null,{"$f":"'Uppdragskontr - ARK (1)'!B210","v":0}]
["Övriga kommentarer:"]
[]
["Iakttagelser uppdragskontroll 2. (ARK):"]
["Beskrivning:",null,null,null,null,"Väsentliga iakttagelser:",null,null,null,null,null,null,null,null,"Uppdragskontroll 2. (ARK)"]
["Allmänt",null,null,null,null,{"$f":"'Uppdragskontr - ARK (2)'!B67","v":0}]
["Bokföringsuppdrag",null,null,null,null,{"$f":"'Uppdragskontr - ARK (2)'!B84","v":0},null,null,null,null,null,null,null,null,"Uppfyller Reko"]
["Betalningsuppdrag",null,null,null,null,{"$f":"'Uppdragskontr - ARK (2)'!B94","v":0}]
["Bokslutsuppdrag",null,null,null,null,{"$f":"'Uppdragskontr - ARK (2)'!B105","v":0},null,null,null,null,null,null,null,null,"Uppfyller i huvudsak Reko, "]
["Årsredovisningsuppdrag",null,null,null,null,{"$f":"'Uppdragskontr - ARK (2)'!B119","v":0},null,null,null,null,null,null,null,null,"men bör förbättras avseende "]
["Årsbokslutsuppdrag",null,null,null,null,{"$f":"'Uppdragskontr - ARK (2)'!B136","v":0},null,null,null,null,null,null,null,null,"angivna iakttagelser"]
["Koncernredovisningsuppdrag",null,null,null,null,{"$f":"'Uppdragskontr - ARK (2)'!B146","v":0}]
["Periodbokslut",null,null,null,null,{"$f":"'Uppdragskontr - ARK (2)'!B159","v":0},null,null,null,null,null,null,null,null,"Uppfyller ej Reko p.g.a. "]
["Rådgivningsuppdrag",null,null,null,null,{"$f":"'Uppdragskontr - ARK (2)'!B172","v":0},null,null,null,null,null,null,null,null,"angivna iakttagelser"]
["Insourcinguppdrag",null,null,null,null,{"$f":"'Uppdragskontr - ARK (2)'!B182","v":0}]
["Skattedeklarationer",null,null,null,null,{"$f":"'Uppdragskontr - ARK (2)'!B191","v":0}]
["Inkomstdeklaration",null,null,null,null,{"$f":"'Uppdragskontr - ARK (2)'!B202","v":0}]
["Löneserviceuppdrag",null,null,null,null,{"$f":"'Uppdragskontr - ARK (2)'!B210","v":0}]
["Övriga kommentarer:"]
[]
["Iakttagelser uppdragskontroll 3. (ARK):"]
["Beskrivning:",null,null,null,null,"Väsentliga iakttagelser:",null,null,null,null,null,null,null,null,"Uppdragskontroll 3. (ARK)"]
["Allmänt",null,null,null,null,{"$f":"'Uppdragskontr - ARK (3)'!B67","v":0}]
["Bokföringsuppdrag",null,null,null,null,{"$f":"'Uppdragskontr - ARK (3)'!B84","v":0},null,null,null,null,null,null,null,null,"Uppfyller Reko"]
["Betalningsuppdrag",null,null,null,null,{"$f":"'Uppdragskontr - ARK (3)'!B94","v":0}]
["Bokslutsuppdrag",null,null,null,null,{"$f":"'Uppdragskontr - ARK (3)'!B105","v":0},null,null,null,null,null,null,null,null,"Uppfyller i huvudsak Reko, "]
["Årsredovisningsuppdrag",null,null,null,null,{"$f":"'Uppdragskontr - ARK (3)'!B119","v":0},null,null,null,null,null,null,null,null,"men bör förbättras avseende "]
["Årsbokslutsuppdrag",null,null,null,null,{"$f":"'Uppdragskontr - ARK (3)'!B136","v":0},null,null,null,null,null,null,null,null,"angivna iakttagelser"]
["Koncernredovisningsuppdrag",null,null,null,null,{"$f":"'Uppdragskontr - ARK (3)'!B146","v":0}]
["Periodbokslut",null,null,null,null,{"$f":"'Uppdragskontr - ARK (3)'!B159","v":0},null,null,null,null,null,null,null,null,"Uppfyller ej Reko p.g.a. "]
["Rådgivningsuppdrag",null,null,null,null,{"$f":"'Uppdragskontr - ARK (3)'!B172","v":0},null,null,null,null,null,null,null,null,"angivna iakttagelser"]
["Insourcinguppdrag",null,null,null,null,{"$f":"'Uppdragskontr - ARK (3)'!B182","v":0}]
["Skattedeklarationer",null,null,null,null,{"$f":"'Uppdragskontr - ARK (3)'!B191","v":0}]
["Inkomstdeklaration",null,null,null,null,{"$f":"'Uppdragskontr - ARK (3)'!B202","v":0}]
["Löneserviceuppdrag",null,null,null,null,{"$f":"'Uppdragskontr - ARK (3)'!B210","v":0}]
["Övriga kommentarer:"]
[]
["Övriga information från kontrollen:"]
[]
[]
[]
["Eventuella kompletteringar:"]
[]
[]
[]
[]
[]
[]
[]
["Underskrift av kontrollant"]
["Ort och datum"]
[]
[]
[]
["Underskrift"]
[]
["Bekräftelse"]
["Ovanstående beskrivning av väsentliga iakttagelser",null,null,null,null,null,null,"Ja","Nej","Kommentarer"]
["under sammanfattning av utförd kvalitetskontroll är korrekt:"]
[]
["Underskrift av kontrollerad redovisningskonsult"]
["Ort och datum"]
[]
[]
[]
["Underskrift"]

{"sheet":"Allmänna kontrol - ARK","index":1,"n_rows":56,"n_cols":11,"rows_kept":56,"cut":false,"hidden":false,"merged":[[10,0,10,3],[10,6,10,8],[8,0,8,3],[8,6,8,8],[0,7,0,8],[4,0,4,3],[6,0,6,3],[6,6,6,8],[7,0,7,3]]}
["Allmänna kontroller - ARK",null,null,null,null,"Urvalsår:",null,{"$f":"'Basuppgifter Sammanfattning'!G8","v":2015}]
[]
[]
["Besöksdatum:"]
[{"$f":"IF(LEN('Basuppgifter Sammanfattning'!A9)>0,'Basuppgifter Sammanfattning'!A9,\"\")","v":""}]
["Byrå:",null,null,null,null,null,"FAR Diarienr:"]
[{"$f":"IF(LEN('Basuppgifter Sammanfattning'!A11)>0,'Basuppgifter Sammanfattning'!A11,\"\")","v":""},null,null,null,null,null,{"$f":"IF(LEN('Basuppgifter Sammanfattning'!G11)>0,'Basuppgifter Sammanfattning'!G11,\"\")","v":""}]
["Auktoriserad redovisningskonsult:",null,null,null,null,null,"SRF Byrånr:"]
[{"$f":"IF(LEN('Basuppgifter Sammanfattning'!A13)>0,'Basuppgifter Sammanfattning'!A13,\"\")","v":""},null,null,null,null,null,{"$f":"IF(LEN('Basuppgifter Sammanfattning'!G13)>0,'Basuppgifter Sammanfattning'!G13,\"\")","v":""}]
["Kvalitetskontrollant:",null,null,null,null,null,"SRF Medl nr:"]
[{"$f":"IF(LEN('Basuppgifter Sammanfattning'!A15)>0,'Basuppgifter Sammanfattning'!A15,\"\")","v":""},null,null,null,null,null,{"$f":"IF(LEN('Basuppgifter Sammanfattning'!G15)>0,'Basuppgifter Sammanfattning'!G15,\"\")","v":""}]
[]
[" ",null,null,"Bedömning:"]
["Ref","Ämne/frågeställning","Reko fr.o.m. 2015","Ja/ stark","Bör förbättras","Nej/ svag","ET"]
[null,null,null,null,null,null,null,null,null,null,"Kommentarer"]
[]
[" ","200. Uppdragsavtal",null,null,null,null,null,null,null," "]
[2001,"Finns uppdragsavtal tecknade med ARKs uppdragsgivare? ",330]
[]
[null,"Väsentliga iakttagelser"]
[]
[]
[" ","210. Arbetets planering, utförande och rapportering"]
[]
[2101,"Finns tidsplanering över ARKs arbete så att olika arbetsmoment utförs i rätt tid? ","210, 410"]
[]
[null,"Väsentliga iakttagelser"]
[]
[]
[" ","220. ARKs arbetssituation"]
[2201,"Planeras och genomförs kompetensutveckling för ARK?",210]
[2202,"Finns medarbetare eller underkonsult som kan \"ta över\" ett uppdrag  vid  t.ex. sjukdom?",210]
[]
[null,"Väsentliga iakttagelser"]
[]
[]
[" ","230. Delegering"]
[2301,"Går ARK igenom medarbetares arbete?",595]
[]
[null,"Väsentliga iakttagelser"]
[]
[]
[" ","240. Dokumentation och arkivering"]
[2401,"Finns egen dokumentation över utfört arbete för uppdragsgivare?",240]
[2402,"Lämnas alltid uppdragsgivarens räkenskapsinformation till uppdragsgivaren efter avslutat räkenskapsår? ",240]
[]
[null,"Väsentliga iakttagelser"]
[]
[]
[" ","250. Särskilda bransch- och andra frågeställningar"]
[2501,"Ser ARK till att uppdragsgivare i kontantbranschen i förekommande fall själva sköter grundbokföringen med dagskassaredovisningar?",150]
[2502,"Avslutas räkenskaperna i enskilda firmor/handelsbolag med fysiska delägare, med årsbokslut alternativt förenklat årsbokslut (K1)","150, 560"]
[2503,"Bedriver du verksamhet/arbetar som som redovisningskonsult i flera bolag förutom detta?"]
[2504,"Efterföljs Reko även i andra företag där ARK är verksam?  "]
[]
[null,"Väsentliga iakttagelser"]

{"sheet":"Uppdragskontr - ARK (1)","index":2,"n_rows":209,"n_cols":11,"rows_kept":209,"cut":false,"hidden":false,"merged":[[0,7,0,8],[3,0,3,1],[5,0,5,1],[5,5,5,7],[7,0,7,1],[7,5,7,7],[6,5,6,7],[9,0,9,1],[9,5,9,7],[13,0,13,1],[14,0,14,1],[20,3,20,4],[16,0,16,1],[17,0,17,1],[20,12,20,17],[21,12,21,17],[22,10,22,11],[22,12,22,17],[23,3,23,4],[23,12,23,17],[20,10,20,11],[211,1,211,3],[211,4,211,5],[211,6,211,7],[211,8,211,10],[38,0,38,1],[44,10,48,10],[45,0,45,1],[47,0,47,1],[66,3,66,4],[66,5,66,6],[212,1,212,3],[212,4,212,5],[212,6,212,7],[212,8,212,10],[213,1,213,3],[213,4,213,5],[213,6,213,7],[213,8,213,10],[217,1,217,10],[220,1,220,8],[214,1,214,3],[214,4,214,5],[214,6,214,7],[214,8,214,10],[215,1,215,3],[215,4,215,5],[215,6,215,7],[215,8,215,10]]}
["Uppdragskontroll 1",null,null,null,null,"Urvalsår:",null,{"$f":"'Basuppgifter Sammanfattning'!G8","v":2015}]
[]
["Besöksdatum:"]
[{"$f":"IF(LEN('Basuppgifter Sammanfattning'!A9)>0,'Basuppgifter Sammanfattning'!A9,\"\")","v":""}]
["Byrå:",null,null,null,null,"FAR Diarienr:"]
[{"$f":"IF(LEN('Basuppgifter Sammanfattning'!A11)>0,'Basuppgifter Sammanfattning'!A11,\"\")","v":""},null,null,null,null,{"$f":"IF(LEN('Basuppgifter Sammanfattning'!G11)>0,'Basuppgifter Sammanfattning'!G11,\"\")","v":""}]
["Auktoriserad redovisningskonsult:",null,null,null,null,"SRF Byrånr:"]
[{"$f":"IF(LEN('Basuppgifter Sammanfattning'!A13)>0,'Basuppgifter Sammanfattning'!A13,\"\")","v":""},null,null,null,null,{"$f":"IF(LEN('Basuppgifter Sammanfattning'!G13)>0,'Basuppgifter Sammanfattning'!G13,\"\")","v":""}]
["Kvalitetskontrollant:",null,null,null,null,"SRF Medl nr:"]
[{"$f":"IF(LEN('Basuppgifter Sammanfattning'!A15)>0,'Basuppgifter Sammanfattning'!A15,\"\")","v":""},null,null,null,null,{"$f":"IF(LEN('Basuppgifter Sammanfattning'!G15)>0,'Basuppgifter Sammanfattning'!G15,\"\")","v":""}]
[]
["Beskrivning av uppdraget (fyll bara i och bedöm frågor under de rubriker som uppdraget avser)"]
[]
["Företagets namn:"]
[]
[]
["Företagets organisationsnummer:"]
[]
[]
["Typ av uppdrag (enligt uppdragsavtalet):",null,null,"Bokslutsdatum"]
[null,"Bokföringsuppdrag"]
[null,"Betalningsuppdrag"]
[null,"Bokslutsuppdrag",null,"Antal anställda"]
[null,"Årsredovisning"]
[null,"Årsbokslut"]
[null,"Koncernredovisning",null,"Kategori - bokslut"]
[null,"Periodbokslut",null,"K1"]
[null,"Rådgivningsuppdrag",null,"K2"]
[null,"Insourcinguppdrag",null,"K3"]
[null,"Skattedeklaration",null,"IFRS"]
[null," Inkomstdeklaration",null,"Allmän"]
[null,"Löneserviceuppdrag"]
[]
["Vilka är delaktiga i uppdraget:",null,null,"Finns analyserade SIE4-filer till denna "]
[null,"ARK",null,"uppdragskontroll? Om JA, markera ftg:"]
[null,"Medarbetare på byrån",null,"Ftg 1"]
[null,"Extern konsult",null,"Ftg 2"]
[null,"Uppdragsgivaren",null,"Nej"]
[]
["Är uppdraget ett kombiuppdrag"]
[null,"Ja"]
[null,"Nej"]
[]
["Information om uppdraget"]
["Företagsform",null," "]
[]
["Bransch"]
[]
[]
[]
[null,null,null,"Bedömning:"]
["Ref","Ämne/frågeställning","Reko fr.o.m. 2015","Ja/ stark","Bör förbättr as","Nej/ svag","ET"]
[null,"Fyll i utifrån de uppdrag som utförs (enl uppdragsavtalet)",null,null,null,null,null,null,null,null,"Kommentarer"]
[]
[null," Allmänt ",null,null,null,null,null,null,null," "]
[3001,"Finns skriftligt och av båda parter undertecknat uppdragsavtal för detta uppdrag? ",330]
[3002,"Innehåller uppdragsavtalet allmänna villkor?                                                                               ",330]
[3003,"Framgår det av uppdragsavtalet inkl allmänna villkoren att uppdragsgivaren har ett självständigt ansvar för företagets redovisning?",330]
[3004,"Är uppdragsavtalet aktuellt, d.v.s. högst fem år gammalt?                                                                            ",330]
[3005,"Finns dokumenterad kännedom om uppdragsgivaren enligt Lagen om penningtvätt och finansiering av terrrorism?",310]
[3006,"Finns uppdragsbeskrivning eller annan \"basinformation\" om uppdragsgivaren?","320,410"]
[3007,"Finns en dokumenterad omprövning av uppdrag?                                                                             ",310]
[3008,"Kombiuppdrag: Har jävsreglerna beaktats (gränsvärden, krav på attestering och klassificering)?"]
[3009,"Attesterar uppdragsgivaren rättelser som påverkar tidigare rapportering?",530]
[]
[null,"Väsentliga iakttagelser"]
[null,"a1"]
[]
[" ","Bokföringsuppdrag"]
[3101,"Har speciella områden i uppdraget som kräver särskild uppmärksamhet identifierats? ","410, 450"]
[3102,"Finns systemdokumentation?                                                                                            ",410]
[3103,"Finns behandlingshistorik?                                                                                            ",410]
[3104,"Är det troligt att månadsrapporterna, RR och BR,  ger bra beslutsunderlag (periodiserade rapporter)? (Se diagram redovisningskvalitet i Dynan)",620]
[3105,"Har väsentliga balanskonton stämts av löpande eller i enlighet med uppdragsavtalet och avstämningarna dokumenterats?",530]
[3106,"Finns tillräckliga övergripande kontroller och rimlighetsbedömningar för att kontrollera att informationen i allt väsentligt blir fullständigt och korrekt behandlat?","160, 620"]
[3107,"Har resultat- och balansräkning skickats till uppdragsgivaren i enlighet med vad som överenskommits i uppdragsavtalet?",620]
[3108,"Har  rapporterna kommenterats av ARK?                                                                          ","110, 620"]
[3109,"Finns OBS-konto? Om ja, har ARK verkat för att OBS-kontot nollställs?",520]
[3110,"Har allvarliga brister rapporterats?                                                                                                                ","520, 640"]
[3111,"Har räkenskapsinformation överlämnats till uppdragsgivaren?",240]
[3112,"Går det att av ARKs dokumentation få en övergripande förståelse för hur uppdraget har utförts, dvs uppfylls kravet på överlämningsbart skick?","140, 240"]
[]
[null,"Väsentliga iakttagelser"]
[]
[]
[null,"Betalningsuppdrag"]
[3201,"Finns uppdragsavtal för betalningsuppdraget av vilket framgår uppdragets omfattning och övrigt relevant information?",540]
[3202,"Sker rimlighetsbedömningar av underlagen som ska betalas?                                                                                                                ","540, 160"]
[3203,"Finns kopia av avtal med bank och eventuella fullmakter i redovisningskonsultens dokumentation?",540]
[3204,"Har uppragsgivaren attesterat de underlag som ligger till grund för betalningarna före själva betalningen?",540]
[3205,"Går det att av ARKs dokumentation få en övergripande förståelse för hur uppdraget har utförts, dvs uppfylls kravet på överlämningsbart skick?",240]
[]
[null,"Väsentliga iakttagelser"]
[]
[]
[null," Bokslutsuppdrag"]
[3301,"Har kontroller skett av andras arbeten?                                                                                                                ",595]
[3302,"Har redovisningskonsulten dokumenterat avstämningar, rimlighetsbedömningar och andra underlag till bokslutet?","550, 160"]
[3303,"Har väsentliga händelser i räkenskapsinformationen rapporterats? ",640]
[3304,"Har räkenskapsinformation överlämnats till uppdragsgivaren?",240]
[3305,"Har ARK egen dokumentation?                                                                                                                ",240]
[3306,"Går det av ARKs dokumentation att få en övergripande förståelse för hur uppdraget har utförts, dvs uppfylls kravet på överlämningsbart skick?              ","140, 240"]
[]
[null,"Väsentliga iakttagelser"]
[]
[]
[" ","Årsredovisningsuppdrag"]
[3401,"Görs kontroller av andras arbeten?                                                                                                            ",595]
[3402,"Har väsentliga händelser i räkenskapsinformationen rapporterats?","520, 640"]
[3403,"Ser årsredovisningens uppställning vid en snabb anblick korrekt ut?",555]
[3404,"Har ARK egen dokumentation?                                                                                                                ",240]
[3405,"Har räkenskapsinformation överlämnats till uppdragsgivaren?",240]
[3406,"Har bokslutsrapport lämnats?                                                                                                                ",670]
[3407,"Finns skriftlig dokumentation kring beslutet att lämna bokslutsrapport?",670]
[3408,"Om förutsättningar för att lämna bokslutsrapport saknas, har detta påtalats för uppdragsgivaren genom en skriftlig rapport?","640, 670"]
[3409,"Går det av ARKs dokumentation att få en övergripande förståelse för hur uppdraget har utförts, dvs uppfylls kravet på överlämningsbart skick?              ","140, 240"]
[]
[null,"Väsentliga iakttagelser"]
[]
[]
[" ","Årsbokslutsuppdrag"]
[3501,"Har bokföringen för enskild firma/handelsbolag avslutats med årsbokslut/förenklat årsbokslut ?",555]
[3502,"Är årsbokslutet/det förenklade årsbokslutet undertecknat?                                                                                                                ",555]
[3503,"Görs kontroller av andras arbeten?                                                                                                                ",595]
[3504,"Har väsentliga händelser i räkenskapsinformationen rapporterats?                                                                                                                ",640]
[3505,"Har väsentliga bristerna åtgärdats?                                                                                                                ",640]
[3506,"Ser årsbokslutets uppställning vid en snabb anblick korrekt ut?                                                                                                                ",630]
[3507,"Har ARK egen dokumentation?                                                                                                                ",240]
[3508,"Har räkenskapsinformation överlämnats till uppdragsgivaren?",240]
[3509,"Har bokslutsrapport lämnats?                                                                                                                ",670]
[3510,"Finns skriftlig dokumentation kring beslutet att lämna bokslutsrapport?",670]
[3511,"Om förutsättningar för att lämna bokslutsrapport saknas, har detta påtalats för uppdragsgivaren genom en skriftlig rapport?","640, 670"]
[3512,"Går det av ARKs dokumentation att få en övergripande förståelse för hur uppdraget har utförts, dvs uppfylls kravet på överlämningsbart skick?              ",240]
[]
[null,"Väsentliga iakttagelser"]
[]
[]
[]
[" ","Koncernredovisningsuppdrag  "]
[3601,"Har redovisningskonsulten dokumenterat avstämningar, rimlighetsbedömningar och andra underlag till koncernredovisningen?","160, 240"]
[3602,"Har ARK egen dokumentation?                                                                                                                ",240]
[3603,"Har dokumentation lämnats till uppdragsgivaren?                                                                                                                ",240]
[3604,"Går det av ARKs dokumentation att få en övergripande förståelse för hur uppdraget har utförts, dvs uppfylls kravet på överlämningsbart skick?              ",240]
[]
[null,"Väsentliga iakttagelser"]
[]
[]
[null,"Periodbokslut"]
[3701,"Görs kontroller av andras arbeten?                                                                                                                ",595]
[3702,"Har redovisningskonsulten dokumenterat avstämningar, rimlighetsbedömningar och andra underlag till bokslutet?","565, 160"]
[3703,"Har väsentliga händelser i räkenskapsinformationen rapporterats? ","520, 640"]
[3704,"Har underlag till upprättat periodbokslut lämnats till uppdragsgivaren?",240]
[3705,"Har periodbokslutsrapport lämnats?                                                                                                                ",680]
[3706,"Finns skriftlig dokumentation kring beslutet att lämna periodbokslutsrapport?",680]
[3707,"Om förutsättningar för att lämna periodbokslutsrapport saknas, har detta påtalats för uppdragsgivaren genom en skriftlig rapport?","640, 680"]
[3708,"Går det av ARKs dokumentation att få en övergripande förståelse för hur uppdraget har utförts, dvs uppfylls kravet på överlämningsbart skick?              ",240]
[]
[null,"Väsentliga iakttagelser"]
[]
[]
[" ","Rådgivningsuppdrag                                                                                                                                                                      "]
[3801,"Överensstämmer uppdraget med innehållet i uppdragsavtalet? (tydlig uppdragsdefinition)","330, 570"]
[3802,"Görs kontroller av inlämnat material?                                                                                                                ",595]
[3803,"Utförs uppdraget av person med rätt kompetens?                                                                                                                ","210, 570"]
[3804,"Finns egen dokumentation av rådgivningsuppdraget?                                                                                                                ","240, 570"]
[3805,"Har dokumentation lämnats till uppdragsgivaren?                                                                                                                ",240]
[3806,"Har utomstående specialist anlitats för rådgivningsuppdrag?                                                                                                                ",595]
[3807,"Har uppdragsgivaren informerats om och godkänt användandet av specialist?",595]
[3808,"Går det av ARKs dokumentation att få en övergripande förståelse för hur uppdraget har utförts, dvs uppfylls kravet på överlämningsbart skick?              ",240]
[]
[null,"Väsentliga iakttagelser"]
[]
[]
[" ","Insourcing-uppdrag (arbete ute hos uppdragsgivaren i uppdragsgivarens system)                                                                                                    "]
[3901,"Finns skriftlig rutinbeskrivning eller motsvarande för uppdraget?                                                                                                                ",590]
[3902,"Finns upprättad och avstämd planering över uppdraget?                                                                                                                 ",590]
[3903,"Har uppdragsgivaren informerats om sitt självständiga ansvar för de processer som redovisningskonsulten deltar i hos uppdragsgivaren i dennes system?",590]
[3904,"Har ARK egen dokumentation i eget förvar?                                                                                                                 ",240]
[3905,"Går det av ARKs dokumentation att få en övergripande förståelse för hur uppdraget har utförts, dvs uppfylls kravet på överlämningsbart skick?              ",240]
[]
[null,"Väsentliga iakttagelser"]
[]
[]
[null,"Skattedeklarationer"]
[4001,"Framgår det i uppdragsavtalet att uppdraget omfattar skattedeklarationer?",330]
[4002,"Finns kopia av deklarationer och rapporter samt tjänsteanteckningar och skriftlig korrespondens sparad?",650]
[4003,"Har kopia av skattedeklarationen lämnats till uppdragsgivaren?                                                                                                                ",240]
[4004,"Går det av ARKs dokumentation att få en övergripande förståelse för hur uppdraget har utförts, dvs uppfylls kravet på överlämningsbart skick?              ",240]
[]
[null,"Väsentliga iakttagelser"]
[]
[]
[null,"Inkomstdeklaration"]
[4101,"Framgår det i uppdragsavtalet att uppdraget omfattar inkomstdeklaration?",655]
[4102,"Har uppdragsgivaren informerats om sitt ansvar för lämnade uppgifter och för att kontrollera deklarationen?",655]
[4103,"Har redovisningskonsulten dokumenterat rimlighetsbedömningar och andra underlag till inkomstdeklarationen?","655, 160"]
[4104,"Finns kopia av inkomstdeklarationer och rapporter samt tjänsteanteckningar och skriftlig korrespondens sparad?",655]
[4105,"Har kopia av inkomstdeklarationen lämnats till uppdragsgivaren?                                                                                                                ",240]
[4106,"Går det av ARKs dokumentation att få en övergripande förståelse för hur uppdraget har utförts, dvs uppfylls kravet på överlämningsbart skick?              ",240]
[]
[null,"Väsentliga iakttagelser"]
[]
[]
[null,"Löneserviceuppdrag"]
[4201,"Finns uppdragsavtal för löneserviceuppdraget av vilket framgår uppdragets omfattning och övrigt relevant information?",545]
[4202,"Har redovisningskonsulten dokumenterat rimlighetsbedömningar?",160]
[4203,"Går det att av ARKs dokumentation få en övergripande förståelse för hur uppdraget har utförts, dvs uppfylls kravet på överlämningsbart skick?",240]
[]
[null,"Väsentliga iakttagelser"]

{"sheet":"Uppdragskontr - ARK (2)","index":3,"n_rows":209,"n_cols":11,"rows_kept":209,"cut":false,"hidden":false,"merged":[[217,1,217,10],[220,1,220,8],[214,1,214,3],[214,4,214,5],[214,6,214,7],[214,8,214,10],[215,1,215,3],[215,4,215,5],[215,6,215,7],[215,8,215,10],[212,1,212,3],[212,4,212,5],[212,6,212,7],[212,8,212,10],[213,1,213,3],[213,4,213,5],[213,6,213,7],[213,8,213,10],[211,8,211,10],[23,3,23,4],[23,12,23,17],[38,0,38,1],[44,10,49,10],[45,0,45,1],[47,0,47,1],[66,3,66,4],[66,5,66,6],[211,1,211,3],[211,4,211,5],[211,6,211,7],[20,3,20,4],[20,10,20,11],[20,12,20,17],[21,12,21,17],[22,10,22,11],[22,12,22,17],[17,0,17,1],[0,7,0,8],[3,0,3,1],[5,0,5,1],[5,5,5,7],[7,0,7,1],[7,5,7,7],[9,0,9,1],[9,5,9,7],[13,0,13,1],[14,0,14,1],[16,0,16,1],[6,5,6,7]]}
["Uppdragskontroll 2",null,null,null,null,"Urvalsår:",null,{"$f":"'Basuppgifter Sammanfattning'!G8","v":2015}]
[]
["Besöksdatum:"]
[{"$f":"IF(LEN('Basuppgifter Sammanfattning'!A9)>0,'Basuppgifter Sammanfattning'!A9,\"\")","v":""}]
["Byrå:",null,null,null,null,"FAR Diarienr:"]
[{"$f":"IF(LEN('Basuppgifter Sammanfattning'!A11)>0,'Basuppgifter Sammanfattning'!A11,\"\")","v":""},null,null,null,null,{"$f":"IF(LEN('Basuppgifter Sammanfattning'!G11)>0,'Basuppgifter Sammanfattning'!G11,\"\")","v":""}]
["Auktoriserad redovisningskonsult:",null,null,null,null,"SRF Byrånr:"]
[{"$f":"IF(LEN('Basuppgifter Sammanfattning'!A13)>0,'Basuppgifter Sammanfattning'!A13,\"\")","v":""},null,null,null,null,{"$f":"IF(LEN('Basuppgifter Sammanfattning'!G13)>0,'Basuppgifter Sammanfattning'!G13,\"\")","v":""}]
["Kvalitetskontrollant:",null,null,null,null,"SRF Medl nr:"]
[{"$f":"IF(LEN('Basuppgifter Sammanfattning'!A15)>0,'Basuppgifter Sammanfattning'!A15,\"\")","v":""},null,null,null,null,{"$f":"IF(LEN('Basuppgifter Sammanfattning'!G15)>0,'Basuppgifter Sammanfattning'!G15,\"\")","v":""}]
[]
["Beskrivning av uppdraget (fyll bara i och bedöm frågor under de rubriker som uppdraget avser)"]
[]
["Företagets namn:"]
[]
[]
["Företagets organisationsnummer:"]
[]
[]
["Typ av uppdrag (enligt uppdragsavtalet):",null,null,"Bokslutsdatum"]
[null,"Bokföringsuppdrag"]
[null,"Betalningsuppdrag"]
[null,"Bokslutsuppdrag",null,"Antal anställda"]
[null,"Årsredovisning"]
[null,"Årsbokslut"]
[null,"Koncernredovisning",null,"Kategori - bokslut"]
[null,"Periodbokslut",null,"K1"]
[null,"Rådgivningsuppdrag",null,"K2"]
[null,"Insourcinguppdrag",null,"K3"]
[null,"Skattedeklaration",null,"IFRS"]
[null," Inkomstdeklaration",null,"Allmän"]
[null,"Löneserviceuppdrag"]
[]
["Vilka är delaktiga i uppdraget:",null,null,"Finns analyserade SIE4-filer till denna "]
[null,"ARK",null,"uppdragskontroll? Om JA, markera ftg:"]
[null,"Medarbetare på byrån",null,"Ftg 1"]
[null,"Extern konsult",null,"Ftg 2"]
[null,"Uppdragsgivaren",null,"Nej"]
[]
["Är uppdraget ett kombiuppdrag"]
[null,"Ja"]
[null,"Nej"]
[]
["Information om uppdraget"]
["Företagsform",null," "]
[]
["Bransch"]
[]
[]
[]
[null,null,null,"Bedömning:"]
["Ref","Ämne/frågeställning","Reko fr.o.m. 2015","Ja/ stark","Bör förbättr as","Nej/ svag","ET"]
[null,"Fyll i utifrån de uppdrag som utförs (enl uppdragsavtalet)",null,null,null,null,null,null,null,null,"Kommentarer"]
[]
[null," Allmänt ",null,null,null,null,null,null,null," "]
[3001,"Finns skriftligt och av båda parter undertecknat uppdragsavtal för detta uppdrag? ",330]
[3002,"Innehåller uppdragsavtalet allmänna villkor?                                                                               ",330]
[3003,"Framgår det av uppdragsavtalet inkl allmänna villkoren att uppdragsgivaren har ett självständigt ansvar för företagets redovisning?",330]
[3004,"Är uppdragsavtalet aktuellt, d.v.s. högst fem år gammalt?                                                                            ",330]
[3005,"Finns dokumenterad kännedom om uppdragsgivaren enligt Lagen om penningtvätt och finansiering av terrrorism?",310]
[3006,"Finns uppdragsbeskrivning eller annan \"basinformation\" om uppdragsgivaren?","320,410"]
[3007,"Finns en dokumenterad omprövning av uppdrag?                                                                             ",310]
[3008,"Kombiuppdrag: Har jävsreglerna beaktats (gränsvärden, krav på attestering och klassificering)?"]
[3009,"Attesterar uppdragsgivaren rättelser som påverkar tidigare rapportering?",530]
[]
[null,"Väsentliga iakttagelser"]
[]
[]
[" ","Bokföringsuppdrag"]
[3101,"Har speciella områden i uppdraget som kräver särskild uppmärksamhet identifierats? ","410, 450"]
[3102,"Finns systemdokumentation?                                                                                            ",410]
[3103,"Finns behandlingshistorik?                                                                                            ",410]
[3104,"Är det troligt att månadsrapporterna, RR och BR,  ger bra beslutsunderlag (periodiserade rapporter)? (Se diagram redovisningskvalitet i Dynan)",620]
[3105,"Har väsentliga balanskonton stämts av löpande eller i enlighet med uppdragsavtalet och avstämningarna dokumenterats?",530]
[3106,"Finns tillräckliga övergripande kontroller och rimlighetsbedömningar för att kontrollera att informationen i allt väsentligt blir fullständigt och korrekt behandlat?","160, 620"]
[3107,"Har resultat- och balansräkning skickats till uppdragsgivaren i enlighet med vad som överenskommits i uppdragsavtalet?",620]
[3108,"Har  rapporterna kommenterats av ARK?                                                                          ","110, 620"]
[3109,"Finns OBS-konto? Om ja, har ARK verkat för att OBS-kontot nollställs?",520]
[3110,"Har allvarliga brister rapporterats?                                                                                                                ","520, 640"]
[3111,"Har räkenskapsinformation överlämnats till uppdragsgivaren?",240]
[3112,"Går det att av ARKs dokumentation få en övergripande förståelse för hur uppdraget har utförts, dvs uppfylls kravet på överlämningsbart skick?","140, 240"]
[]
[null,"Väsentliga iakttagelser"]
[]
[]
[null,"Betalningsuppdrag"]
[3201,"Finns uppdragsavtal för betalningsuppdraget av vilket framgår uppdragets omfattning och övrigt relevant information?",540]
[3202,"Sker rimlighetsbedömningar av underlagen som ska betalas?                                                                                                                ","540, 160"]
[3203,"Finns kopia av avtal med bank och eventuella fullmakter i redovisningskonsultens dokumentation?",540]
[3204,"Har uppragsgivaren attesterat de underlag som ligger till grund för betalningarna före själva betalningen?",540]
[3205,"Går det att av ARKs dokumentation få en övergripande förståelse för hur uppdraget har utförts, dvs uppfylls kravet på överlämningsbart skick?",240]
[]
[null,"Väsentliga iakttagelser"]
[]
[]
[null," Bokslutsuppdrag"]
[3301,"Har kontroller skett av andras arbeten?                                                                                                                ",595]
[3302,"Har redovisningskonsulten dokumenterat avstämningar, rimlighetsbedömningar och andra underlag till bokslutet?","550, 160"]
[3303,"Har väsentliga händelser i räkenskapsinformationen rapporterats? ",640]
[3304,"Har räkenskapsinformation överlämnats till uppdragsgivaren?",240]
[3305,"Har ARK egen dokumentation?                                                                                                                ",240]
[3306,"Går det av ARKs dokumentation att få en övergripande förståelse för hur uppdraget har utförts, dvs uppfylls kravet på överlämningsbart skick?              ","140, 240"]
[]
[null,"Väsentliga iakttagelser"]
[]
[]
[" ","Årsredovisningsuppdrag"]
[3401,"Görs kontroller av andras arbeten?                                                                                                            ",595]
[3402,"Har väsentliga händelser i räkenskapsinformationen rapporterats?","520, 640"]
[3403,"Ser årsredovisningens uppställning vid en snabb anblick korrekt ut?",555]
[3404,"Har ARK egen dokumentation?                                                                                                                ",240]
[3405,"Har räkenskapsinformation överlämnats till uppdragsgivaren?",240]
[3406,"Har bokslutsrapport lämnats?                                                                                                                ",670]
[3407,"Finns skriftlig dokumentation kring beslutet att lämna bokslutsrapport?",670]
[3408,"Om förutsättningar för att lämna bokslutsrapport saknas, har detta påtalats för uppdragsgivaren genom en skriftlig rapport?","640, 670"]
[3409,"Går det av ARKs dokumentation att få en övergripande förståelse för hur uppdraget har utförts, dvs uppfylls kravet på överlämningsbart skick?              ","140, 240"]
[]
[null,"Väsentliga iakttagelser"]
[]
[]
[" ","Årsbokslutsuppdrag"]
[3501,"Har bokföringen för enskild firma/handelsbolag avslutats med årsbokslut/förenklat årsbokslut ?",555]
[3502,"Är årsbokslutet/det förenklade årsbokslutet undertecknat?                                                                                                                ",555]
[3503,"Görs kontroller av andras arbeten?                                                                                                                ",595]
[3504,"Har väsentliga händelser i räkenskapsinformationen rapporterats?                                                                                                                ",640]
[3505,"Har väsentliga bristerna åtgärdats?                                                                                                                ",640]
[3506,"Ser årsbokslutets uppställning vid en snabb anblick korrekt ut?                                                                                                                ",630]
[3507,"Har ARK egen dokumentation?                                                                                                                ",240]
[3508,"Har räkenskapsinformation överlämnats till uppdragsgivaren?",240]
[3509,"Har bokslutsrapport lämnats?                                                                                                                ",670]
[3510,"Finns skriftlig dokumentation kring beslutet att lämna bokslutsrapport?",670]
[3511,"Om förutsättningar för att lämna bokslutsrapport saknas, har detta påtalats för uppdragsgivaren genom en skriftlig rapport?","640, 670"]
[3512,"Går det av ARKs dokumentation att få en övergripande förståelse för hur uppdraget har utförts, dvs uppfylls kravet på överlämningsbart skick?              ",240]
[]
[null,"Väsentliga iakttagelser"]
[]
[]
[]
[" ","Koncernredovisningsuppdrag  "]
[3601,"Har redovisningskonsulten dokumenterat avstämningar, rimlighetsbedömningar och andra underlag till koncernredovisningen?","160, 240"]
[3602,"Har ARK egen dokumentation?                                                                                                                ",240]
[3603,"Har dokumentation lämnats till uppdragsgivaren?                                                                                                                ",240]
[3604,"Går det av ARKs dokumentation att få en övergripande förståelse för hur uppdraget har utförts, dvs uppfylls kravet på överlämningsbart skick?              ",240]
[]
[null,"Väsentliga iakttagelser"]
[]
[]
[null,"Periodbokslut"]
[3701,"Görs kontroller av andras arbeten?                                                                                                                ",595]
[3702,"Har redovisningskonsulten dokumenterat avstämningar, rimlighetsbedömningar och andra underlag till bokslutet?","565, 160"]
[3703,"Har väsentliga händelser i räkenskapsinformationen rapporterats? ","520, 640"]
[3704,"Har underlag till upprättat periodbokslut lämnats till uppdragsgivaren?",240]
[3705,"Har periodbokslutsrapport lämnats?                                                                                                                ",680]
[3706,"Finns skriftlig dokumentation kring beslutet att lämna periodbokslutsrapport?",680]
[3707,"Om förutsättningar för att lämna periodbokslutsrapport saknas, har detta påtalats för uppdragsgivaren genom en skriftlig rapport?","640, 680"]
[3708,"Går det av ARKs dokumentation att få en övergripande förståelse för hur uppdraget har utförts, dvs uppfylls kravet på överlämningsbart skick?              ",240]
[]
[null,"Väsentliga iakttagelser"]
[]
[]
[" ","Rådgivningsuppdrag                                                                                                                                                                      "]
[3801,"Överensstämmer uppdraget med innehållet i uppdragsavtalet? (tydlig uppdragsdefinition)","330, 570"]
[3802,"Görs kontroller av inlämnat material?                                                                                                                ",595]
[3803,"Utförs uppdraget av person med rätt kompetens?                                                                                                                ","210, 570"]
[3804,"Finns egen dokumentation av rådgivningsuppdraget?                                                                                                                ","240, 570"]
[3805,"Har dokumentation lämnats till uppdragsgivaren?                                                                                                                ",240]
[3806,"Har utomstående specialist anlitats för rådgivningsuppdrag?                                                                                                                ",595]
[3807,"Har uppdragsgivaren informerats om och godkänt användandet av specialist?",595]
[3808,"Går det av ARKs dokumentation att få en övergripande förståelse för hur uppdraget har utförts, dvs uppfylls kravet på överlämningsbart skick?              ",240]
[]
[null,"Väsentliga iakttagelser"]
[]
[]
[" ","Insourcing-uppdrag (arbete ute hos uppdragsgivaren i uppdragsgivarens system)                                                                                                    "]
[3901,"Finns skriftlig rutinbeskrivning eller motsvarande för uppdraget?                                                                                                                ",590]
[3902,"Finns upprättad och avstämd planering över uppdraget?                                                                                                                 ",590]
[3903,"Har uppdragsgivaren informerats om sitt självständiga ansvar för de processer som redovisningskonsulten deltar i hos uppdragsgivaren i dennes system?",590]
[3904,"Har ARK egen dokumentation i eget förvar?                                                                                                                 ",240]
[3905,"Går det av ARKs dokumentation att få en övergripande förståelse för hur uppdraget har utförts, dvs uppfylls kravet på överlämningsbart skick?              ",240]
[]
[null,"Väsentliga iakttagelser"]
[]
[]
[null,"Skattedeklarationer"]
[4001,"Framgår det i uppdragsavtalet att uppdraget omfattar skattedeklarationer?",330]
[4002,"Finns kopia av deklarationer och rapporter samt tjänsteanteckningar och skriftlig korrespondens sparad?",650]
[4003,"Har kopia av skattedeklarationen lämnats till uppdragsgivaren?                                                                                                                ",240]
[4004,"Går det av ARKs dokumentation att få en övergripande förståelse för hur uppdraget har utförts, dvs uppfylls kravet på överlämningsbart skick?              ",240]
[]
[null,"Väsentliga iakttagelser"]
[]
[]
[null,"Inkomstdeklaration"]
[4101,"Framgår det i uppdragsavtalet att uppdraget omfattar inkomstdeklaration?",655]
[4102,"Har uppdragsgivaren informerats om sitt ansvar för lämnade uppgifter och för att kontrollera deklarationen?",655]
[4103,"Har redovisningskonsulten dokumenterat rimlighetsbedömningar och andra underlag till inkomstdeklarationen?","655, 160"]
[4104,"Finns kopia av inkomstdeklarationer och rapporter samt tjänsteanteckningar och skriftlig korrespondens sparad?",655]
[4105,"Har kopia av inkomstdeklarationen lämnats till uppdragsgivaren?                                                                                                                ",240]
[4106,"Går det av ARKs dokumentation att få en övergripande förståelse för hur uppdraget har utförts, dvs uppfylls kravet på överlämningsbart skick?              ",240]
[]
[null,"Väsentliga iakttagelser"]
[]
[]
[null,"Löneserviceuppdrag"]
[4201,"Finns uppdragsavtal för löneserviceuppdraget av vilket framgår uppdragets omfattning och övrigt relevant information?",545]
[4202,"Har redovisningskonsulten dokumenterat rimlighetsbedömningar?",160]
[4203,"Går det att av ARKs dokumentation få en övergripande förståelse för hur uppdraget har utförts, dvs uppfylls kravet på överlämningsbart skick?",240]
[]
[null,"Väsentliga iakttagelser"]

{"sheet":"Uppdragskontr - ARK (3)","index":4,"n_rows":209,"n_cols":11,"rows_kept":209,"cut":false,"hidden":false,"merged":[[217,1,217,10],[220,1,220,8],[214,1,214,3],[214,4,214,5],[214,6,214,7],[214,8,214,10],[215,1,215,3],[215,4,215,5],[215,6,215,7],[215,8,215,10],[212,1,212,3],[212,4,212,5],[212,6,212,7],[212,8,212,10],[213,1,213,3],[213,4,213,5],[213,6,213,7],[213,8,213,10],[211,8,211,10],[23,3,23,4],[23,12,23,17],[38,0,38,1],[44,10,48,10],[45,0,45,1],[47,0,47,1],[66,3,66,4],[66,5,66,6],[211,1,211,3],[211,4,211,5],[211,6,211,7],[20,3,20,4],[20,10,20,11],[20,12,20,17],[21,12,21,17],[22,10,22,11],[22,12,22,17],[17,0,17,1],[0,7,0,8],[3,0,3,1],[5,0,5,1],[5,5,5,7],[7,0,7,1],[7,5,7,7],[9,0,9,1],[9,5,9,7],[13,0,13,1],[14,0,14,1],[16,0,16,1],[6,5,6,7]]}
["Uppdragskontroll 3",null,null,null,null,"Urvalsår:",null,{"$f":"'Basuppgifter Sammanfattning'!G8","v":2015}]
[]
["Besöksdatum:"]
[{"$f":"IF(LEN('Basuppgifter Sammanfattning'!A9)>0,'Basuppgifter Sammanfattning'!A9,\"\")","v":""}]
["Byrå:",null,null,null,null,"FAR Diarienr:"]
[{"$f":"IF(LEN('Basuppgifter Sammanfattning'!A11)>0,'Basuppgifter Sammanfattning'!A11,\"\")","v":""},null,null,null,null,{"$f":"IF(LEN('Basuppgifter Sammanfattning'!G11)>0,'Basuppgifter Sammanfattning'!G11,\"\")","v":""}]
["Auktoriserad redovisningskonsult:",null,null,null,null,"SRF Byrånr:"]
[{"$f":"IF(LEN('Basuppgifter Sammanfattning'!A13)>0,'Basuppgifter Sammanfattning'!A13,\"\")","v":""},null,null,null,null,{"$f":"IF(LEN('Basuppgifter Sammanfattning'!G13)>0,'Basuppgifter Sammanfattning'!G13,\"\")","v":""}]
["Kvalitetskontrollant:",null,null,null,null,"SRF Medl nr:"]
[{"$f":"IF(LEN('Basuppgifter Sammanfattning'!A15)>0,'Basuppgifter Sammanfattning'!A15,\"\")","v":""},null,null,null,null,{"$f":"IF(LEN('Basuppgifter Sammanfattning'!G15)>0,'Basuppgifter Sammanfattning'!G15,\"\")","v":""}]
[]
["Beskrivning av uppdraget (fyll bara i och bedöm frågor under de rubriker som uppdraget avser)"]
[]
["Företagets namn:"]
[]
[]
["Företagets organisationsnummer:"]
[]
[]
["Typ av uppdrag (enligt uppdragsavtalet):",null,null,"Bokslutsdatum"]
[null,"Bokföringsuppdrag"]
[null,"Betalningsuppdrag"]
[null,"Bokslutsuppdrag",null,"Antal anställda"]
[null,"Årsredovisning"]
[null,"Årsbokslut"]
[null,"Koncernredovisning",null,"Kategori - bokslut"]
[null,"Periodbokslut",null,"K1"]
[null,"Rådgivningsuppdrag",null,"K2"]
[null,"Insourcinguppdrag",null,"K3"]
[null,"Skattedeklaration",null,"IFRS"]
[null," Inkomstdeklaration",null,"Allmän"]
[null,"Löneserviceuppdrag"]
[]
["Vilka är delaktiga i uppdraget:",null,null,"Finns analyserade SIE4-filer till denna "]
[null,"ARK",null,"uppdragskontroll? Om JA, markera ftg:"]
[null,"Medarbetare på byrån",null,"Ftg 1"]
[null,"Extern konsult",null,"Ftg 2"]
[null,"Uppdragsgivaren",null,"Nej"]
[]
["Är uppdraget ett kombiuppdrag"]
[null,"Ja"]
[null,"Nej"]
[]
["Information om uppdraget"]
["Företagsform",null," "]
[]
["Bransch"]
[]
[]
[]
[null,null,null,"Bedömning:"]
["Ref","Ämne/frågeställning","Reko fr.o.m. 2015","Ja/ stark","Bör förbättr as","Nej/ svag","ET"]
[null,"Fyll i utifrån de uppdrag som utförs (enl uppdragsavtalet)",null,null,null,null,null,null,null,null,"Kommentarer"]
[]
[null," Allmänt ",null,null,null,null,null,null,null," "]
[3001,"Finns skriftligt och av båda parter undertecknat uppdragsavtal för detta uppdrag? ",330]
[3002,"Innehåller uppdragsavtalet allmänna villkor?                                                                               ",330]
[3003,"Framgår det av uppdragsavtalet inkl allmänna villkoren att uppdragsgivaren har ett självständigt ansvar för företagets redovisning?",330]
[3004,"Är uppdragsavtalet aktuellt, d.v.s. högst fem år gammalt?                                                                            ",330]
[3005,"Finns dokumenterad kännedom om uppdragsgivaren enligt Lagen om penningtvätt och finansiering av terrrorism?",310]
[3006,"Finns uppdragsbeskrivning eller annan \"basinformation\" om uppdragsgivaren?","320,410"]
[3007,"Finns en dokumenterad omprövning av uppdrag?                                                                             ",310]
[3008,"Kombiuppdrag: Har jävsreglerna beaktats (gränsvärden, krav på attestering och klassificering)?"]
[3009,"Attesterar uppdragsgivaren rättelser som påverkar tidigare rapportering?",530]
[]
[null,"Väsentliga iakttagelser"]
[]
[]
[" ","Bokföringsuppdrag"]
[3101,"Har speciella områden i uppdraget som kräver särskild uppmärksamhet identifierats? ","410, 450"]
[3102,"Finns systemdokumentation?                                                                                            ",410]
[3103,"Finns behandlingshistorik?                                                                                            ",410]
[3104,"Är det troligt att månadsrapporterna, RR och BR,  ger bra beslutsunderlag (periodiserade rapporter)? (Se diagram redovisningskvalitet i Dynan)",620]
[3105,"Har väsentliga balanskonton stämts av löpande eller i enlighet med uppdragsavtalet och avstämningarna dokumenterats?",530]
[3106,"Finns tillräckliga övergripande kontroller och rimlighetsbedömningar för att kontrollera att informationen i allt väsentligt blir fullständigt och korrekt behandlat?","160, 620"]
[3107,"Har resultat- och balansräkning skickats till uppdragsgivaren i enlighet med vad som överenskommits i uppdragsavtalet?",620]
[3108,"Har  rapporterna kommenterats av ARK?                                                                          ","110, 620"]
[3109,"Finns OBS-konto? Om ja, har ARK verkat för att OBS-kontot nollställs?",520]
[3110,"Har allvarliga brister rapporterats?                                                                                                                ","520, 640"]
[3111,"Har räkenskapsinformation överlämnats till uppdragsgivaren?",240]
[3112,"Går det att av ARKs dokumentation få en övergripande förståelse för hur uppdraget har utförts, dvs uppfylls kravet på överlämningsbart skick?","140, 240"]
[]
[null,"Väsentliga iakttagelser"]
[]
[]
[null,"Betalningsuppdrag"]
[3201,"Finns uppdragsavtal för betalningsuppdraget av vilket framgår uppdragets omfattning och övrigt relevant information?",540]
[3202,"Sker rimlighetsbedömningar av underlagen som ska betalas?                                                                                                                ","540, 160"]
[3203,"Finns kopia av avtal med bank och eventuella fullmakter i redovisningskonsultens dokumentation?",540]
[3204,"Har uppragsgivaren attesterat de underlag som ligger till grund för betalningarna före själva betalningen?",540]
[3205,"Går det att av ARKs dokumentation få en övergripande förståelse för hur uppdraget har utförts, dvs uppfylls kravet på överlämningsbart skick?",240]
[]
[null,"Väsentliga iakttagelser"]
[]
[]
[null," Bokslutsuppdrag"]
[3301,"Har kontroller skett av andras arbeten?                                                                                                                ",595]
[3302,"Har redovisningskonsulten dokumenterat avstämningar, rimlighetsbedömningar och andra underlag till bokslutet?","550, 160"]
[3303,"Har väsentliga händelser i räkenskapsinformationen rapporterats? ",640]
[3304,"Har räkenskapsinformation överlämnats till uppdragsgivaren?",240]
[3305,"Har ARK egen dokumentation?                                                                                                                ",240]
[3306,"Går det av ARKs dokumentation att få en övergripande förståelse för hur uppdraget har utförts, dvs uppfylls kravet på överlämningsbart skick?              ","140, 240"]
[]
[null,"Väsentliga iakttagelser"]
[]
[]
[" ","Årsredovisningsuppdrag"]
[3401,"Görs kontroller av andras arbeten?                                                                                                            ",595]
[3402,"Har väsentliga händelser i räkenskapsinformationen rapporterats?","520, 640"]
[3403,"Ser årsredovisningens uppställning vid en snabb anblick korrekt ut?",555]
[3404,"Har ARK egen dokumentation?                                                                                                                ",240]
[3405,"Har räkenskapsinformation överlämnats till uppdragsgivaren?",240]
[3406,"Har bokslutsrapport lämnats?                                                                                                                ",670]
[3407,"Finns skriftlig dokumentation kring beslutet att lämna bokslutsrapport?",670]
[3408,"Om förutsättningar för att lämna bokslutsrapport saknas, har detta påtalats för uppdragsgivaren genom en skriftlig rapport?","640, 670"]
[3409,"Går det av ARKs dokumentation att få en övergripande förståelse för hur uppdraget har utförts, dvs uppfylls kravet på överlämningsbart skick?              ","140, 240"]
[]
[null,"Väsentliga iakttagelser"]
[]
[]
[" ","Årsbokslutsuppdrag"]
[3501,"Har bokföringen för enskild firma/handelsbolag avslutats med årsbokslut/förenklat årsbokslut ?",555]
[3502,"Är årsbokslutet/det förenklade årsbokslutet undertecknat?                                                                                                                ",555]
[3503,"Görs kontroller av andras arbeten?                                                                                                                ",595]
[3504,"Har väsentliga händelser i räkenskapsinformationen rapporterats?                                                                                                                ",640]
[3505,"Har väsentliga bristerna åtgärdats?                                                                                                                ",640]
[3506,"Ser årsbokslutets uppställning vid en snabb anblick korrekt ut?                                                                                                                ",630]
[3507,"Har ARK egen dokumentation?                                                                                                                ",240]
[3508,"Har räkenskapsinformation överlämnats till uppdragsgivaren?",240]
[3509,"Har bokslutsrapport lämnats?                                                                                                                ",670]
[3510,"Finns skriftlig dokumentation kring beslutet att lämna bokslutsrapport?",670]
[3511,"Om förutsättningar för att lämna bokslutsrapport saknas, har detta påtalats för uppdragsgivaren genom en skriftlig rapport?","640, 670"]
[3512,"Går det av ARKs dokumentation att få en övergripande förståelse för hur uppdraget har utförts, dvs uppfylls kravet på överlämningsbart skick?              ",240]
[]
[null,"Väsentliga iakttagelser"]
[]
[]
[]
[" ","Koncernredovisningsuppdrag  "]
[3601,"Har redovisningskonsulten dokumenterat avstämningar, rimlighetsbedömningar och andra underlag till koncernredovisningen?","160, 240"]
[3602,"Har ARK egen dokumentation?                                                                                                                ",240]
[3603,"Har dokumentation lämnats till uppdragsgivaren?                                                                                                                ",240]
[3604,"Går det av ARKs dokumentation att få en övergripande förståelse för hur uppdraget har utförts, dvs uppfylls kravet på överlämningsbart skick?              ",240]
[]
[null,"Väsentliga iakttagelser"]
[]
[]
[null,"Periodbokslut"]
[3701,"Görs kontroller av andras arbeten?                                                                                                                ",595]
[3702,"Har redovisningskonsulten dokumenterat avstämningar, rimlighetsbedömningar och andra underlag till bokslutet?","565, 160"]
[3703,"Har väsentliga händelser i räkenskapsinformationen rapporterats? ","520, 640"]
[3704,"Har underlag till upprättat periodbokslut lämnats till uppdragsgivaren?",240]
[3705,"Har periodbokslutsrapport lämnats?                                                                                                                ",680]
[3706,"Finns skriftlig dokumentation kring beslutet att lämna periodbokslutsrapport?",680]
[3707,"Om förutsättningar för att lämna periodbokslutsrapport saknas, har detta påtalats för uppdragsgivaren genom en skriftlig rapport?","640, 680"]
[3708,"Går det av ARKs dokumentation att få en övergripande förståelse för hur uppdraget har utförts, dvs uppfylls kravet på överlämningsbart skick?              ",240]
[]
[null,"Väsentliga iakttagelser"]
[]
[]
[" ","Rådgivningsuppdrag                                                                                                                                                                      "]
[3801,"Överensstämmer uppdraget med innehållet i uppdragsavtalet? (tydlig uppdragsdefinition)","330, 570"]
[3802,"Görs kontroller av inlämnat material?                                                                                                                ",595]
[3803,"Utförs uppdraget av person med rätt kompetens?                                                                                                                ","210, 570"]
[3804,"Finns egen dokumentation av rådgivningsuppdraget?                                                                                                                ","240, 570"]
[3805,"Har dokumentation lämnats till uppdragsgivaren?                                                                                                                ",240]
[3806,"Har utomstående specialist anlitats för rådgivningsuppdrag?                                                                                                                ",595]
[3807,"Har uppdragsgivaren informerats om och godkänt användandet av specialist?",595]
[3808,"Går det av ARKs dokumentation att få en övergripande förståelse för hur uppdraget har utförts, dvs uppfylls kravet på överlämningsbart skick?              ",240]
[]
[null,"Väsentliga iakttagelser"]
[]
[]
[" ","Insourcing-uppdrag (arbete ute hos uppdragsgivaren i uppdragsgivarens system)                                                                                                    "]
[3901,"Finns skriftlig rutinbeskrivning eller motsvarande för uppdraget?                                                                                                                ",590]
[3902,"Finns upprättad och avstämd planering över uppdraget?                                                                                                                 ",590]
[3903,"Har uppdragsgivaren informerats om sitt självständiga ansvar för de processer som redovisningskonsulten deltar i hos uppdragsgivaren i dennes system?",590]
[3904,"Har ARK egen dokumentation i eget förvar?                                                                                                                 ",240]
[3905,"Går det av ARKs dokumentation att få en övergripande förståelse för hur uppdraget har utförts, dvs uppfylls kravet på överlämningsbart skick?              ",240]
[]
[null,"Väsentliga iakttagelser"]
[]
[]
[null,"Skattedeklarationer"]
[4001,"Framgår det i uppdragsavtalet att uppdraget omfattar skattedeklarationer?",330]
[4002,"Finns kopia av deklarationer och rapporter samt tjänsteanteckningar och skriftlig korrespondens sparad?",650]
[4003,"Har kopia av skattedeklarationen lämnats till uppdragsgivaren?                                                                                                                ",240]
[4004,"Går det av ARKs dokumentation att få en övergripande förståelse för hur uppdraget har utförts, dvs uppfylls kravet på överlämningsbart skick?              ",240]
[]
[null,"Väsentliga iakttagelser"]
[]
[]
[null,"Inkomstdeklaration"]
[4101,"Framgår det i uppdragsavtalet att uppdraget omfattar inkomstdeklaration?",655]
[4102,"Har uppdragsgivaren informerats om sitt ansvar för lämnade uppgifter och för att kontrollera deklarationen?",655]
[4103,"Har redovisningskonsulten dokumenterat rimlighetsbedömningar och andra underlag till inkomstdeklarationen?","655, 160"]
[4104,"Finns kopia av inkomstdeklarationer och rapporter samt tjänsteanteckningar och skriftlig korrespondens sparad?",655]
[4105,"Har kopia av inkomstdeklarationen lämnats till uppdragsgivaren?                                                                                                                ",240]
[4106,"Går det av ARKs dokumentation att få en övergripande förståelse för hur uppdraget har utförts, dvs uppfylls kravet på överlämningsbart skick?              ",240]
[]
[null,"Väsentliga iakttagelser"]
[]
[]
[null,"Löneserviceuppdrag"]
[4201,"Finns uppdragsavtal för löneserviceuppdraget av vilket framgår uppdragets omfattning och övrigt relevant information?",545]
[4202,"Har redovisningskonsulten dokumenterat rimlighetsbedömningar?",160]
[4203,"Går det att av ARKs dokumentation få en övergripande förståelse för hur uppdraget har utförts, dvs uppfylls kravet på överlämningsbart skick?",240]
[]
[null,"Väsentliga iakttagelser"]